Cogmind - Beta 12 @@@ ROGUE MODE // 2023.08.17 @ 17:59:17 Player: Waste Result: Self-destructed Performance ------------- Evolutions (4) 2000 Regions Visited (18) 3600 Robots Destroyed (165) 825 Value Destroyed (6982) 6982 Prototype IDs (38) 760 Alien Tech Used (0) 0 Bonus (3193) 3193 TOTAL SCORE: 17360 Bonus ------- High Alert Combat Kills 433 Follower Combat Kills 1401 Entered Garrisons 200 Aligned with FarCom 300 Met Data Miner 300 Built Enhanced Grunts 300 A7 Reached Mainframe 300 Friendly Fire -41 Cogmind --------- Core Integrity 789/850 Matter 300/300 Energy 350/350 System Corruption 0% Temperature Cool (0) Movement Treading (160) Location -6/Archives Parts ------- > --- POWER (1) -------- Quantum Reactor > --- PROPULSION (4) --- Improved Treads Improved Treads Medium Treads Improved Medium Treads > --- UTILITY (6) ------ High-capacity Storage Unit Improved Signal Interpreter Improved Targeting Computer Improved Heavy Armor Plating Advanced Hacking Suite > --- WEAPON (4) ------- Gatling Laser Heavy Plasma Cannon Enhanced Autogun Hypervelocity Gauss Cannon > --- INVENTORY (20) --- Reinforced Deuterium Engine Neutrino Core Advanced Treads Advanced Heat Sink Improved Cooling System Advanced Cooling System Superbattery (1500) Matter Compressor (250) Experimental Sensor Array Advanced Terrain Scanner Improved Terrain Scan Processor Improved Kinecellerator Centrium Medium Armor Plating EM Disruption Field Long-range Tractor Beam Heavy Machine Gun Gauss Cannon Heavy Flak Cannon Heavy Flak Cannon Heavy Rocket Launcher Peak State ------------ > --- POWER ------------ Quantum Reactor > --- PROPULSION ------- Improved Treads Improved Treads Medium Treads Improved Medium Treads > --- UTILITY ---------- Advanced Cooling System High-capacity Storage Unit Improved Signal Interpreter Improved Targeting Computer Improved Heavy Armor Plating > --- WEAPON ----------- Gatling Laser Heavy Plasma Cannon Enhanced Autogun Hypervelocity Gauss Cannon > --- INVENTORY -------- Reinforced Deuterium Engine Neutrino Core Advanced Treads Advanced Heat Sink Improved Cooling System Superbattery Matter Compressor Experimental Sensor Array Advanced Terrain Scanner Improved Terrain Scan Processor Improved Kinecellerator EM Disruption Field Advanced Hacking Suite Long-range Tractor Beam Flak Gun Heavy Machine Gun Gauss Cannon Heavy Flak Cannon Heavy Flak Cannon Heavy Rocket Launcher [Rating: 73] Favorites ----------- Power Reinforced Ion Engine Engine Reinforced Ion Engine Reactor Quantum Reactor Propulsion Light Treads Treads Light Treads Leg Aluminum Leg Wheel Armored Wheel Utility High-capacity Storage Unit Device Advanced Cooling System Storage High-capacity Storage Unit Processor Improved Signal Interpreter Hackware Advanced Hacking Suite Protection Improved Medium Armor Plating Weapon Improved Assault Rifle Energy Gun Gatling Laser Energy Cannon Heavy Ion Cannon Ballistic Gun Improved Assault Rifle Ballistic Cannon Hypervelocity Gauss Cannon Launcher Rocket Launcher Build | -11 -10 -10 -9 -9 -9 -8 -8 -8 -8 -7 -7 -7 -7 -6 -6 -6 -6 -6 ------- Run | Jun Mat Min Mat Min Exi Min Mat Gar Mat Fac Low Low Dat Pro Fac Ext Cet Arc Slots Evolved 8 | . . . 2 . . . 2 . . 2 . . . . 2 . . . Power . | . . . . . . . . . . . . . . . . . . . Propulsion 2 | . . . 2 . . . . . . . . . . . . . . . Utility 4 | . . . . . . . 1 . . 2 . . . . 1 . . . Weapon 2 | . . . . . . . 1 . . . . . . . 1 . . . Parts Attached 169 | 7 18 . 24 9 1 . 2 34 7 13 8 8 3 5 12 16 2 . Power 14 | 1 2 . 5 1 . . . 2 . 1 . . . . 1 . 1 . Engine 13 | 1 2 . 5 1 . . . 2 . 1 . . . . 1 . . . Core . | . . . . . . . . . . . . . . . . . . . Reactor 1 | . . . . . . . . . . . . . . . . . 1 . Propulsion 60 | 2 7 . 14 2 . . . 11 5 6 1 3 . . 1 8 . . Treads 31 | . . . 1 . . . . 7 5 5 1 3 . . 1 8 . . Leg 28 | 2 7 . 12 2 . . . 4 . 1 . . . . . . . . Wheel 1 | . . . 1 . . . . . . . . . . . . . . . Hover . | . . . . . . . . . . . . . . . . . . . Flight . | . . . . . . . . . . . . . . . . . . . Utility 50 | 2 6 . . 2 1 . 1 9 1 3 3 4 . 4 9 4 1 . Device 29 | 1 4 . . 1 . . 1 4 . . 3 2 . 2 7 4 . . Storage 4 | 1 2 . . . 1 . . . . . . . . . . . . . Processor 2 | . . . . . . . . . . 2 . . . . . . . . Hackware 1 | . . . . . . . . . . . . . . . . . 1 . Protection 14 | . . . . 1 . . . 5 1 1 . 2 . 2 2 . . . Artifact . | . . . . . . . . . . . . . . . . . . . Weapon 45 | 2 3 . 5 4 . . 1 12 1 3 4 1 3 1 1 4 . . Energy Gun 9 | 2 3 . . . . . . 1 1 1 . . 1 . . . . . Energy Cannon 7 | . . . 1 2 . . . . . . 1 1 1 . . 1 . . Ballistic Gun 18 | . . . 4 . . . 1 7 . 2 1 . 1 1 1 . . . Ballistic Cannon 6 | . . . . 1 . . . 3 . . . . . . . 2 . . Launcher 5 | . . . . 1 . . . 1 . . 2 . . . . 1 . . Special Weapon . | . . . . . . . . . . . . . . . . . . . Impact Weapon . | . . . . . . . . . . . . . . . . . . . Slashing Weapon . | . . . . . . . . . . . . . . . . . . . Piercing Weapon . | . . . . . . . . . . . . . . . . . . . Special Melee Weapon . | . . . . . . . . . . . . . . . . . . . Unidentified Prototypes 5 | . . . 2 . . . . . . 1 1 . . . 1 . . . Parts Lost 23 | . 1 . 6 3 . . . 7 2 3 . . . . 1 . . . Power 6 | . 1 . 3 1 . . . 1 . . . . . . . . . . Propulsion 10 | . . . 3 . . . . 3 1 2 . . . . 1 . . . Utility 2 | . . . . 1 . . . 1 . . . . . . . . . . Weapon 5 | . . . . 1 . . . 2 1 1 . . . . . . . . Highest Loss Streak 4 | . 1 . 2 3 . . . 4 1 3 . . . . 1 . . . To Critical Strikes 1 | . . . . . . . . 1 . . . . . . . . . . Average Slot Usage (%) 98 | . 100 100 98 98 100 100 92 98 99 98 99 100 78 100 98 93 93 93 Engine 8 | . 14 14 10 10 11 11 9 8 9 6 7 7 7 7 5 6 1 . Treads 18 | . . . 1 . . . . 15 35 28 30 30 30 30 26 26 26 26 Leg 14 | . 28 28 38 44 44 44 36 19 . 1 . . . . . . . . Device 8 | . 14 14 11 5 . . 9 8 9 7 7 6 7 6 11 6 3 . Storage 8 | . 14 14 11 11 11 11 9 9 9 7 7 7 7 7 6 6 6 6 Processor 7 | . . . . . . . . . . 14 15 15 15 15 13 13 13 13 Protection 5 | . . . . 5 11 11 9 9 8 7 7 7 7 7 6 6 6 6 Energy Gun 9 | . 28 28 9 . . . . 3 14 11 7 7 . 7 6 6 6 6 Energy Cannon 3 | . . . 4 15 11 11 9 . . . 2 6 . 6 . 5 6 6 Ballistic Gun 9 | . . . 7 1 . . 1 22 12 10 11 7 . 7 20 6 6 6 Ballistic Cannon 1 | . . . . 4 11 11 9 . . . . . . . . 5 6 6 Naked Turns . | . . . . . . . . . . . . . . . . . . . Heaviest Build 104 | 13 51 51 55 64 64 64 68 70 71 71 70 73 73 79 87 95 104 102 Greatest Support 104 | 20 20 20 60 66 66 66 66 80 80 88 96 104 104 104 104 104 104 104 Greatest Overweight (x) 22 | . 2 2 4 . . . 1 3 1 22 . . . . . 1 . . Average Overweight (x) . | . . 2 1 . . . . . . . . . . . . . . . Largest Inventory Capacity 20 | 8 20 20 20 20 20 20 20 20 20 20 20 20 20 20 20 20 20 20 Average Capacity 19 | 7 15 20 20 20 20 20 20 20 20 20 20 20 20 20 20 20 20 20 Most Carried 20 | 7 20 20 20 20 20 20 20 20 20 20 20 20 20 20 20 20 20 20 Average Carried 19 | 4 13 20 19 18 18 20 19 19 19 19 20 19 20 20 19 19 19 20 Final Capacity 20 | 8 20 20 20 20 20 20 20 20 20 20 20 20 20 20 20 20 20 20 Final Carried 20 | 7 20 20 20 18 20 20 20 19 20 20 20 20 20 20 20 20 20 20 Class Distribution -------------------- 41% | Scavenger-Skirmisher 21% | Scavenger-Mutant 20% | Mutant 6% | Scavenger-Gunner 5% | Skirmisher Dominant Class ---------------- Mutant | -10/Materials Scavenger-Mutant | -10/Mines Mutant | -9/Materials Mutant | -9/Mines Mutant | -9/Exiles Mutant | -8/Mines Mutant | -8/Materials Scavenger-Skirmisher | -8/Garrison Scavenger-Skirmisher | -8/Materials Scavenger-Skirmisher | -7/Factory Scavenger-Skirmisher | -7/Lower Caves Scavenger-Skirmisher | -7/Lower Caves Scavenger-Mutant | -7/Data Miner Scavenger-Mutant | -6/Proximity Caves Scavenger-Gunner | -6/Factory Scavenger-Skirmisher | -6/Extension Skirmisher | -6/Cetus Commander-Skirmisher | -6/Archives Resources | -11 -10 -10 -9 -9 -9 -8 -8 -8 -8 -7 -7 -7 -7 -6 -6 -6 -6 -6 ----------- Run | Jun Mat Min Mat Min Exi Min Mat Gar Mat Fac Low Low Dat Pro Fac Ext Cet Arc Matter Collected 4491 | 264 400 . 580 116 . . 40 1090 205 347 107 199 . 109 513 453 68 . Remotely 116 | . . . . . . . . . . . . . . . 10 106 . . Salvage Created 6505 | 77 582 . 1667 148 . . . 1194 497 1049 36 132 . 97 360 563 103 . Parts 336 | 10 36 . 87 5 . . . 71 31 35 1 10 . 8 12 27 3 . Haulers Intercepted 6 | . 1 . 5 . . . . . . . . . . . . . . . Recyclers Shooed 3 | 1 . . 2 . . . . . . . . . . . . . . . Parts Field Recycled . | . . . . . . . . . . . . . . . . . . . Retrieved Matter . | . . . . . . . . . . . . . . . . . . . Parts Self-Destructed 30 | . . . . . . . . . . . 1 15 . 14 . . . . Prevented . | . . . . . . . . . . . . . . . . . . . Kills | -11 -10 -10 -9 -9 -9 -8 -8 -8 -8 -7 -7 -7 -7 -6 -6 -6 -6 -6 ------- Run | Jun Mat Min Mat Min Exi Min Mat Gar Mat Fac Low Low Dat Pro Fac Ext Cet Arc Combat Hostiles Destroyed 146 | . 12 . 31 11 . . . 31 8 23 1 5 . 4 8 10 2 . Guns 106 | . 10 . 19 . . . . 28 8 23 1 3 . 4 8 1 1 . Cannons 24 | . . . 11 4 . . . . . . . 1 . . . 7 1 . AOE 11 | . . . . 7 . . . 3 . . . . . . . 1 . . Classes Destroyed 18 | 1 4 . 7 2 . . . 2 . . 1 . . . . 1 . . Worker 2 | . . . 1 . . . . . . 1 . . . . . . . . Builder 1 | . 1 . . . . . . . . . . . . . . . . . Tunneler 6 | 4 . . 1 . . . . . . 1 . . . . . . . . Hauler 6 | . 1 . 5 . . . . . . . . . . . . . . . Recycler 2 | . . . 1 . . . . . 1 . . . . . . . . . Operator 2 | . . . 1 . . . . . . . . . . . . 1 . . Watcher 8 | . 3 . 3 . . . . 1 1 . . . . . . . . . Swarmer 28 | . . . 4 . . . . 7 . 7 . 4 . 4 . 2 . . Cutter 3 | . . . . . . . . 3 . . . . . . . . . . Grunt 63 | . 12 . 18 . . . . 6 5 11 . . . . 5 4 2 . Brawler 6 | . . . 1 . . . . 2 2 1 . . . . . . . . Duelist 4 | . . . 1 . . . . 1 . 1 . . . . 1 . . . Sentry 24 | . . . 7 2 . . . 8 1 2 . 1 . . 1 2 . . Demolisher 1 | . . . . 1 . . . . . . . . . . . . . . Hunter 1 | . . . . . . . . . . . 1 . . . . . . . Programmer 6 | . . . . . . . . 4 . 1 . . . . 1 . . . Behemoth 2 | . . . . . . . . . . . . . . . . 2 . . Assembled 8 | . . . . 8 . . . . . . . . . . . . . . Best Kill Streak 9 | 2 3 . 6 9 . . . 4 3 6 1 4 . 4 6 2 2 . Combat Bots Only 9 | . 2 . 5 9 . . . 4 2 6 1 4 . 4 6 2 2 . Max Kills in Single Turn 5 | 1 1 . 1 5 . . . 2 1 1 1 1 . 2 1 1 1 . Gunslinging . | . . . . . . . . . . . . . . . . . . . Exploded 5 | . . . . 5 . . . 2 . . . . . . . 1 . . Melee . | . . . . . . . . . . . . . . . . . . . Uniques/NPCs Destroyed . | . . . . . . . . . . . . . . . . . . . Combat | -11 -10 -10 -9 -9 -9 -8 -8 -8 -8 -7 -7 -7 -7 -6 -6 -6 -6 -6 -------- Run | Jun Mat Min Mat Min Exi Min Mat Gar Mat Fac Low Low Dat Pro Fac Ext Cet Arc Damage Taken 7629 | . 626 . 1447 605 . . 62 1996 213 1070 29 287 . 251 333 578 84 48 Core 841 | . 142 . 277 69 . . . 165 . 78 . 33 . 16 26 35 . . Absorbed by Shields 191 | . . . . . . . . . . . . . . . . 154 37 . Regen/Repaired (Parts) 99 | . 57 . . . . . . . . 42 . . . . . . . . Core Remaining (%) 61 | 100 . 43 . . . 13 . . 70 . . . . 81 . . . . Volleys Fired 438 | 9 53 . 132 13 . . 1 87 29 46 8 9 . 12 15 20 4 . Largest 4 | 2 2 . 2 2 . . 2 3 3 3 3 3 . 2 4 4 4 . Hottest 256 | 100 100 . 115 136 . . 116 127 173 173 133 170 . 105 163 256 256 . Shots Fired 1072 | 18 104 1 251 22 . . 2 247 80 139 12 27 . 19 59 75 16 . Gun 922 | 18 104 1 198 . . . . 242 80 139 6 18 . 13 59 36 8 . Cannon 143 | . . . 53 19 . . 2 2 . . 6 9 . 6 . 38 8 . Launcher 7 | . . . . 3 . . . 3 . . . . . . . 1 . . Special . | . . . . . . . . . . . . . . . . . . . Kinetic 526 | . . . 94 2 . . 1 213 41 66 4 8 . 6 45 38 8 . Thermal 539 | 18 104 1 157 17 . . 1 31 39 73 8 19 . 13 14 36 8 . Explosive 7 | . . . . 3 . . . 3 . . . . . . . 1 . . Electromagnetic . | . . . . . . . . . . . . . . . . . . . Robot Hit Streak 36 | 4 14 . 15 11 . . 2 36 13 23 6 12 . 4 15 10 7 . Robot Miss Streak 6 | 4 5 . 3 1 . . 1 4 2 4 1 1 . 2 4 6 2 . Penetration Max 1 | . . . . . . . . . . . . . . . . 1 . . Secondary Targets 10 | . 1 . . . . . . 6 2 1 . . . . . . . . Max Gunslinging Chain 1 | . 1 . . . . . . 1 1 1 . . . . . . . . Shots Hit Robots 718 | 6 74 . 166 15 . . 1 157 35 104 6 21 . 11 52 56 14 . Core Hits 345 | 4 31 . 61 17 . . 1 57 18 67 4 10 . 8 33 28 6 . Critical Kills 9 | . . . 1 . . . . 2 . . . . . . . 5 1 . Critical Parts Destroyed 10 | . . . . . . . . 1 1 . . . . . . 5 3 . Critical Strikes 36 | 1 8 . 3 . . . . 3 3 2 . . . . . 12 4 . Burn 15 | 1 8 . 2 . . . . . 2 2 . . . . . . . . Meltdown 2 | . . . 1 . . . . . . . . . . . . 1 . . Destroy 19 | . . . . . . . . 3 1 . . . . . . 11 4 . Melee Attacks . | . . . . . . . . . . . . . . . . . . . Impact . | . . . . . . . . . . . . . . . . . . . Slashing . | . . . . . . . . . . . . . . . . . . . Piercing . | . . . . . . . . . . . . . . . . . . . Sneak Attacks . | . . . . . . . . . . . . . . . . . . . Combat Hostiles . | . . . . . . . . . . . . . . . . . . . Follow-up Attacks . | . . . . . . . . . . . . . . . . . . . Damage Inflicted 14223 | 86 1000 2 2897 675 . . 20 2915 692 2077 112 385 . 206 1327 1507 322 . Guns 11054 | 86 997 . 1946 . . . . 2724 665 2048 112 278 . 206 1293 568 131 . Cannons 2251 | . . . 827 305 . . 20 27 . . . 107 . . . 774 191 . Explosions 699 | . . . . 370 . . . 164 . . . . . . . 165 . . Melee . | . . . . . . . . . . . . . . . . . . . Ramming 219 | . 3 2 124 . . . . . 27 29 . . . . 34 . . . Kinetic 5915 | . . . 955 55 . . . 2144 240 770 65 80 . 82 931 478 115 . Thermal 7390 | 86 997 . 1818 250 . . 20 607 425 1278 47 305 . 124 362 864 207 . Explosive 699 | . . . . 370 . . . 164 . . . . . . . 165 . . Electromagnetic . | . . . . . . . . . . . . . . . . . . . Impact . | . . . . . . . . . . . . . . . . . . . Slashing . | . . . . . . . . . . . . . . . . . . . Piercing . | . . . . . . . . . . . . . . . . . . . Highest Corruption 12 | . 4 4 . . . . . 12 12 4 4 4 4 4 . . . . Average Corruption 6 | . 3 4 . . . . . 11 12 2 4 4 4 4 . . . . Corruption Purged . | . . . . . . . . . . . . . . . . . . . Corruption Blocked . | . . . . . . . . . . . . . . . . . . . Effects 183 | . 20 9 . . . . . 63 25 13 16 21 2 14 . . . . Message Errors 43 | . 4 2 . . . . . 14 6 3 5 5 . 4 . . . . Matter Fused 36 | . 3 3 . . . . . 12 3 4 3 6 1 1 . . . . Heat Flow Errors 26 | . 5 3 . . . . . 3 2 4 2 2 . 5 . . . . Energy Discharges 14 | . 2 . . . . . . 7 1 1 . 1 . 2 . . . . Parts Fused 2 | . . . . . . . . 1 1 . . . . . . . . . Data Loss (minor) 23 | . 1 . . . . . . 10 4 . 2 5 . 1 . . . . Data Loss (major) 10 | . 2 . . . . . . 2 1 . 3 1 1 . . . . . Misfires 11 | . . 1 . . . . . 4 3 1 . 1 . 1 . . . . Alerts 4 | . 1 . . . . . . 2 . . 1 . . . . . . . Misdirections 1 | . . . . . . . . . 1 . . . . . . . . . Weapon Failures 13 | . 2 . . . . . . 8 3 . . . . . . . . . Overload Shots . | . . . . . . . . . . . . . . . . . . . Overflow Damage 29 | . . . 11 5 . . . . . . . . . . 7 6 . . Projectiles 9 | . . . 7 . . . . . . . . . . . . 2 . . Explosions 9 | . . . . 5 . . . . . . . . . . . 4 . . Melee 11 | . . . 4 . . . . . . . . . . . 7 . . . Knockbacks 5 | . . . 1 . . . . . . . . . . . . 3 1 . Impact 1 | . . . 1 . . . . . . . . . . . . . . . Kinetic 3 | . . . . . . . . . . . . . . . . 2 1 . Secondary 1 | . . . . . . . . . . . . . . . . 1 . . Self-Inflicted Damage 120 | . . . 10 64 . . . 46 . . . . . . . . . . Shots 3 | . . . . 2 . . . 1 . . . . . . . . . . Rammed 8 | . . . 1 . . . . . 1 4 . . . . 2 . . . Targets Rammed 19 | . 2 1 8 . . . . . 1 5 . . . . 2 . . . Kicked 10 | . 2 1 7 . . . . . . . . . . . . . . . Crushed 1 | . . . . . . . . . . 1 . . . . . . . . Highest Temperature 501 | 162 236 200 90 57 . . 18 501 193 233 264 378 . 288 168 458 196 . Average Temperature 81 | 53 80 98 23 22 . . 12 124 52 41 128 167 . 112 50 130 90 . Received Heat Transfer 2398 | . 384 . 498 110 . . 54 648 117 273 . 36 . . 147 118 13 . Effects 6 | . . . . . . . . 1 . . . 3 . . . 2 . . Shutdowns 1 | . . . . . . . . . . . . . . . . 1 . . Energy Bleed 2 | . . . . . . . . . . . . 1 . . . 1 . . Interference 2 | . . . . . . . . 1 . . . 1 . . . . . . Damage (minor) 1 | . . . . . . . . . . . . 1 . . . . . . Siege Activations . | . . . . . . . . . . . . . . . . . . . Robots Corrupted . | . . . . . . . . . . . . . . . . . . . Combat Hostiles . | . . . . . . . . . . . . . . . . . . . Parts Fried . | . . . . . . . . . . . . . . . . . . . Impact Corruptions 3 | . . . 2 . . . . . . . . . . . 1 . . . Robots Melted 5 | . 2 . 1 . . . . . . . . 1 . . . 1 . . Combat Hostiles 5 | . 2 . 1 . . . . . . . . 1 . . . 1 . . Parts Melted 33 | 1 10 . 10 3 . . . 1 . 2 1 1 . 1 1 2 . . Heat Transferred 16135 | 333 3404 . 4144 407 . . 37 888 851 2398 100 598 . 275 800 1525 375 . Parts Sabotaged . | . . . . . . . . . . . . . . . . . . . Parts Stolen . | . . . . . . . . . . . . . . . . . . . Parts Stripped . | . . . . . . . . . . . . . . . . . . . Power Chain Reactions . | . . . . . . . . . . . . . . . . . . . Missiles Intercepted . | . . . . . . . . . . . . . . . . . . . Alert | -11 -10 -10 -9 -9 -9 -8 -8 -8 -8 -7 -7 -7 -7 -6 -6 -6 -6 -6 ------- Run | Jun Mat Min Mat Min Exi Min Mat Gar Mat Fac Low Low Dat Pro Fac Ext Cet Arc Peak Influence 1210 | 20 278 6 844 318 . . 59 1210 746 457 . . . . 232 327 606 304 Initial 589 | . 13 6 . 246 . . . 38 589 242 . . . . . . 182 242 Average 263 | 6 98 5 214 238 . . 17 595 554 328 . . . . 46 109 416 257 Maximum Alert Level 4 | . 1 . 3 1 . . . 4 3 2 . . . . 1 1 2 1 Low Security (%) 49 | 100 87 100 64 31 . 100 100 11 . 2 . . . . 88 83 9 . Level 1 27 | . 12 . 16 68 . . . 24 . 78 . . . . 11 16 42 100 Level 2 17 | . . . 16 . . . . 30 95 18 . . . . . . 47 . Level 3 3 | . . . 2 . . . . 18 4 . . . . . . . . . Level 4 2 | . . . . . . . . 15 . . . . . . . . . . Level 5 . | . . . . . . . . . . . . . . . . . . . High Security . | . . . . . . . . . . . . . . . . . . . Max Security . | . . . . . . . . . . . . . . . . . . . Squads Dispatched 23 | . 5 . 7 . . . 1 . 1 5 . . . . 3 1 . . Investigation 9 | . 2 . 2 . . . 1 . 1 1 . . . . 1 1 . . Extermination 4 | . . . . . . . . . . 2 . . . . 2 . . . Reinforcement 10 | . 3 . 5 . . . . . . 2 . . . . . . . . Assault . | . . . . . . . . . . . . . . . . . . . Garrison . | . . . . . . . . . . . . . . . . . . . Intercept . | . . . . . . . . . . . . . . . . . . . Searches Triggered 1 | . . . 1 . . . . . . . . . . . . . . . Data Miner Redirects 1 | . . . . . . . . . . . . . . . 1 . . . Construction Impeded 1 | . . . . . . . . . . 1 . . . . . . . . Haulers Reinforced . | . . . . . . . . . . . . . . . . . . . Active Scanning Responses . | . . . . . . . . . . . . . . . . . . . Cargo Convoy Interrupts . | . . . . . . . . . . . . . . . . . . . Stealth | -11 -10 -10 -9 -9 -9 -8 -8 -8 -8 -7 -7 -7 -7 -6 -6 -6 -6 -6 --------- Run | Jun Mat Min Mat Min Exi Min Mat Gar Mat Fac Low Low Dat Pro Fac Ext Cet Arc Distress Signals 6 | . 2 . 2 . . . . . 1 . . . . . . . 1 . Communications Jammed . | . . . . . . . . . . . . . . . . . . . Distress Signals . | . . . . . . . . . . . . . . . . . . . Times Spotted 224 | . 18 . 47 19 . . 6 34 12 29 1 5 . 4 10 25 11 3 Peak Tracking Total 10 | . 3 . 5 10 . . 4 4 3 6 1 4 . 4 7 4 5 1 Tactical Retreats 6 | . . . 2 1 . . . . 2 . . . . . . 1 . . Traps | -11 -10 -10 -9 -9 -9 -8 -8 -8 -8 -7 -7 -7 -7 -6 -6 -6 -6 -6 ------- Run | Jun Mat Min Mat Min Exi Min Mat Gar Mat Fac Low Low Dat Pro Fac Ext Cet Arc Traps Triggered 12 | . 2 . 2 . . . 1 1 2 3 . . . . . 1 . . Indirectly . | . . . . . . . . . . . . . . . . . . . Trap Hack Attempts . | . . . . . . . . . . . . . . . . . . . Triggered . | . . . . . . . . . . . . . . . . . . . Disarmed . | . . . . . . . . . . . . . . . . . . . Reprogrammed . | . . . . . . . . . . . . . . . . . . . Reused . | . . . . . . . . . . . . . . . . . . . Traps Extracted . | . . . . . . . . . . . . . . . . . . . Installed . | . . . . . . . . . . . . . . . . . . . Triggered 3 | . . . . . . . . . . . . 1 . 2 . . . . Exploded 1 | . . . . . . . . 1 . . . . . . . . . . Machines | -11 -10 -10 -9 -9 -9 -8 -8 -8 -8 -7 -7 -7 -7 -6 -6 -6 -6 -6 ---------- Run | Jun Mat Min Mat Min Exi Min Mat Gar Mat Fac Low Low Dat Pro Fac Ext Cet Arc Machines Disabled 11 | . . . . . . . . 7 . . . . . . . 3 1 . Max in Single Turn 1 | . . . . . . . . 1 . . . . . . . 1 . . Garrison Relay 6 | . . . . . . . . 6 . . . . . . . . . . Phase Generator 1 | . . . . . . . . 1 . . . . . . . . . . Machines Repaired . | . . . . . . . . . . . . . . . . . . . Machines Sabotaged . | . . . . . . . . . . . . . . . . . . . Overloaded Fab Kills . | . . . . . . . . . . . . . . . . . . . Hacking | -11 -10 -10 -9 -9 -9 -8 -8 -8 -8 -7 -7 -7 -7 -6 -6 -6 -6 -6 --------- Run | Jun Mat Min Mat Min Exi Min Mat Gar Mat Fac Low Low Dat Pro Fac Ext Cet Arc Machines Accessed 48 | . 7 . 8 1 1 . 3 4 5 9 . 1 3 . 2 3 1 . Terminals 30 | . 4 . 6 . . . 2 4 4 5 . . . . 1 3 1 . Fabricators 2 | . . . . . . . . . . 2 . . . . . . . . Repair Stations 4 | . 1 . 1 . . . . . 1 1 . . . . . . . . Recycling Units 3 | . 2 . 1 . . . . . . . . . . . . . . . Scanalyzers 1 | . . . . . . . . . . . . . . . 1 . . . Garrison Access 2 | . . . . . . . 1 . . 1 . . . . . . . . Total Hacks 120 | . 15 . 21 1 1 . 7 8 10 20 . 1 24 . 5 6 1 . Successful 66 | . 9 . 6 1 1 . 3 2 3 8 . 1 24 . 3 4 1 . Failed 53 | . 5 . 15 . . . 4 6 7 12 . . . . 2 2 . . Catastrophic 16 | . 1 . 2 . . . . 4 2 6 . . . . . 1 . . Database Lockouts 1 | . 1 . . . . . . . . . . . . . . . . . Manual 64 | . 13 . 20 . 1 . 6 2 8 7 . . . . 1 5 1 . Terminals 74 | . 11 . 19 . . . 6 8 9 12 . . . . 2 6 1 . Fabricators 4 | . . . . . . . . . . 4 . . . . . . . . Repair Stations 7 | . 2 . 1 . . . . . 1 3 . . . . . . . . Recycling Units 3 | . 2 . 1 . . . . . . . . . . . . . . . Scanalyzers 3 | . . . . . . . . . . . . . . . 3 . . . Garrison Access 2 | . . . . . . . 1 . . 1 . . . . . . . . Terminal Hacks 42 | . 2 . 2 1 1 . 1 2 1 3 . 1 24 . 1 2 1 . Record 6 | . . . . . . . . . . . . . 6 . . . . . Part Schematic 11 | . . . . . . . . . . . . . 10 . . 1 . . Robot Schematic 5 | . . . . . . . . . . . . . 5 . . . . . Robot Analysis 4 | . 2 . 1 . . . 1 . . . . . . . . . . . Prototype ID Bank 3 | . . . . . . . . . . . . . 3 . . . . . Open Door 3 | . . . . 1 . . . . . . . 1 . . . . 1 . Branch Access Points 2 | . . . 1 . . . . . . 1 . . . . . . . . Alert Level 2 | . . . . . . . . . . 1 . . . . 1 . . . Unreport Threat 2 | . . . . . . . . . 1 . . . . . . 1 . . Zone Layout 1 | . . . . . . . . . . 1 . . . . . . . . Garrison Registry 1 | . . . . . . . . 1 . . . . . . . . . . Patrol Navigation 1 | . . . . . . . . 1 . . . . . . . . . . EX-Prototype ID Bank 1 | . . . . . 1 . . . . . . . . . . . . . Fabricator Hacks 1 | . . . . . . . . . . 1 . . . . . . . . Network Status 1 | . . . . . . . . . . 1 . . . . . . . . Repair Station Hacks 4 | . 2 . . . . . . . . 2 . . . . . . . . Scan Component 2 | . 1 . . . . . . . . 1 . . . . . . . . Repair 2 | . 1 . . . . . . . . 1 . . . . . . . . Recycling Unit Hacks . | . . . . . . . . . . . . . . . . . . . Scanalyzer 2 | . . . . . . . . . . . . . . . 2 . . . Insert Component 1 | . . . . . . . . . . . . . . . 1 . . . Analyze 1 | . . . . . . . . . . . . . . . 1 . . . Garrison Access Hacks 1 | . . . . . . . 1 . . . . . . . . . . . Unlock Access 1 | . . . . . . . 1 . . . . . . . . . . . Unauthorized Hacks 16 | . 5 . 4 . . . 1 . 2 2 . . . . . 2 . . Terminals 11 | . 3 . 3 . . . 1 . 2 . . . . . . 2 . . Botnet 11 | . 3 . 3 . . . 1 . 2 . . . . . . 2 . . Fabricators 2 | . . . . . . . . . . 2 . . . . . . . . Fabnet 2 | . . . . . . . . . . 2 . . . . . . . . Repair Stations . | . . . . . . . . . . . . . . . . . . . Recycling Units 3 | . 2 . 1 . . . . . . . . . . . . . . . Tunnel 3 | . 2 . 1 . . . . . . . . . . . . . . . Scanalyzers . | . . . . . . . . . . . . . . . . . . . Garrison Access . | . . . . . . . . . . . . . . . . . . . Data Cores Recovered . | . . . . . . . . . . . . . . . . . . . Used . | . . . . . . . . . . . . . . . . . . . Hacking Detections 36 | . 4 . 7 . . . 2 4 5 8 . . . . 2 3 1 . Full Trace Events 4 | . . . 1 . . . . 1 . 1 . . . . 1 . . . Feedback Events . | . . . . . . . . . . . . . . . . . . . Feedback Blocked . | . . . . . . . . . . . . . . . . . . . Robot Schematics Acquired 5 | . . . . . . . . . . . . . 5 . . . . . Robots Built . | . . . . . . . . . . . . . . . . . . . Authchips . | . . . . . . . . . . . . . . . . . . . Time . | . . . . . . . . . . . . . . . . . . . Total Robot Build Rating . | . . . . . . . . . . . . . . . . . . . Part Schematics Acquired 11 | . . . . . . . . . . . . . 10 . . 1 . . Parts Built . | . . . . . . . . . . . . . . . . . . . Authchips . | . . . . . . . . . . . . . . . . . . . Time . | . . . . . . . . . . . . . . . . . . . Total Part Build Rating . | . . . . . . . . . . . . . . . . . . . Parts Repaired 2 | . 1 . . . . . . . . 1 . . . . . . . . Time 58 | . 26 . . . . . . . . 32 . . . . . . . . Parts Recycled . | . . . . . . . . . . . . . . . . . . . Recycled Matter . | . . . . . . . . . . . . . . . . . . . Retrieved Matter . | . . . . . . . . . . . . . . . . . . . Retrieved Components . | . . . . . . . . . . . . . . . . . . . Parts Scanalyzed 1 | . . . . . . . . . . . . . . . 1 . . . Part Schematics Acquired . | . . . . . . . . . . . . . . . . . . . Parts Damaged . | . . . . . . . . . . . . . . . . . . . Bothacking | -11 -10 -10 -9 -9 -9 -8 -8 -8 -8 -7 -7 -7 -7 -6 -6 -6 -6 -6 ------------ Run | Jun Mat Min Mat Min Exi Min Mat Gar Mat Fac Low Low Dat Pro Fac Ext Cet Arc Used RIF Installer . | . . . . . . . . . . . . . . . . . . . Robots Hacked 1 | . . . . . . . . . . . . . . . 1 . . . Non-combat . | . . . . . . . . . . . . . . . . . . . Combat 1 | . . . . . . . . . . . . . . . 1 . . . Robot Hacks Applied . | . . . . . . . . . . . . . . . . . . . Relay Couplers Released 25 | . . . . . . . . 25 . . . . . . . . . . Machine Destruction 25 | . . . . . . . . 25 . . . . . . . . . . Fabnet Peak Effective % 6 | . . . . . . . . . . . . . . 6 6 6 6 6 Autooverrided 1 | . . . . . . . . . . . . . . . 1 . . . Robots Rewired 10 | . . . . . . . . . . . . . . . . 10 . . Allies Hacked . | . . . . . . . . . . . . . . . . . . . Hacks Repelled . | . . . . . . . . . . . . . . . . . . . Allies | -11 -10 -10 -9 -9 -9 -8 -8 -8 -8 -7 -7 -7 -7 -6 -6 -6 -6 -6 -------- Run | Jun Mat Min Mat Min Exi Min Mat Gar Mat Fac Low Low Dat Pro Fac Ext Cet Arc Total Allies 37 | . . . . 3 . . . 2 . . . . . 1 1 25 5 . Largest Group 19 | . . . . 3 3 3 3 3 1 . . . . 1 1 19 19 15 Highest-Rated Group 977 | . . . . 40 40 40 40 40 20 . . . . 96 96 681 977 895 Highest-Rated Ally 159 | . . . . 16 16 16 16 20 20 . . . . 96 96 159 159 152 Total Orders 3 | . . . . . . . . . . . . . . . . . 3 . STAY 2 | . . . . . . . . . . . . . . . . . 2 . FOLLOW 1 | . . . . . . . . . . . . . . . . . 1 . Ally Attacks 206 | . . . . . . . 14 10 7 . . . . 1 11 69 85 9 Total Damage 4678 | . . . . . . . 178 241 185 . . . . 48 423 1472 1889 242 Kills 43 | . . . . . . . 2 1 1 . . . . 1 3 19 12 4 Allies Corrupted 1 | . . . . . . . . . . . . . . . . 1 . . Allies Melted 2 | . . . . . . . . 1 . . . . . . 1 . . . Intel | -11 -10 -10 -9 -9 -9 -8 -8 -8 -8 -7 -7 -7 -7 -6 -6 -6 -6 -6 ------- Run | Jun Mat Min Mat Min Exi Min Mat Gar Mat Fac Low Low Dat Pro Fac Ext Cet Arc Robot Analysis Total 4 | . 2 . 1 . . . 1 . . . . . . . . . . . Derelict Logs Recovered 8 | . . 1 . 1 . . . . . . 3 2 . 1 . . . . Drone Launches . | . . . . . . . . . . . . . . . . . . . Drone Recoveries . | . . . . . . . . . . . . . . . . . . . Exploration | -11 -10 -10 -9 -9 -9 -8 -8 -8 -8 -7 -7 -7 -7 -6 -6 -6 -6 -6 ------------- Run | Jun Mat Min Mat Min Exi Min Mat Gar Mat Fac Low Low Dat Pro Fac Ext Cet Arc Turns Passed 15199 | 145 1217 455 2041 580 289 92 155 1809 729 1698 936 1096 150 978 975 1509 324 21 Spaces Moved 7800 | 87 509 175 969 429 235 60 115 852 294 811 558 647 91 513 555 741 146 13 Core 9 | 8 . . . . . . . . . 1 . . . . . . . . Treads 4773 | . . . . . . . . 405 294 810 558 647 91 513 555 741 146 13 Legs 2807 | 79 509 175 758 429 235 60 115 447 . . . . . . . . . . Wheels 211 | . . . 211 . . . . . . . . . . . . . . . Hover . | . . . . . . . . . . . . . . . . . . . Flight . | . . . . . . . . . . . . . . . . . . . Fastest Speed 50 | 50 120 260 120 120 120 120 120 120 160 160 160 160 160 160 160 160 160 160 Average Speed 161 | 113 187 260 151 120 120 120 128 168 160 171 160 160 160 160 160 167 160 160 Slowest Speed 1150 | 120 260 260 330 120 120 120 190 330 240 1150 160 160 160 160 160 240 160 160 Overloaded Moves . | . . . . . . . . . . . . . . . . . . . Propulsion Burnouts . | . . . . . . . . . . . . . . . . . . . Robots Hopped . | . . . . . . . . . . . . . . . . . . . Cave-ins Triggered . | . . . . . . . . . . . . . . . . . . . Exploration Rate (%) 53 | 5 86 38 84 89 62 23 14 86 33 23 63 72 70 63 12 82 66 44 Regions Visited 18 Branch Regions 11 Pre-discovered Areas 8 | . 2 . 1 1 . . . . . . 2 . 1 1 . . . . Known Exits Taken 10 | . . . 1 . . . 1 . . 1 1 1 1 1 1 1 1 . Unknown Exits Taken 7 | 1 1 1 . 1 1 1 . . 1 . . . . . . . . . Scrap Searched 9 | . . . . 2 . . . . . . 1 5 . 1 . . . . Spaces Dug 11 | . . . . . . . . 4 6 . . . . 1 . . . . Terrain Destroyed 98 | . . . . 33 . . 1 27 9 . . 3 . 1 1 23 . . Melee . | . . . . . . . . . . . . . . . . . . . Projectile 17 | . . . . . . . 1 . 9 . . 3 . 1 1 2 . . AOE 81 | . . . . 33 . . . 27 . . . . . . . 21 . . Terrain Rammed . | . . . . . . . . . . . . . . . . . . . Walls Destroyed . | . . . . . . . . . . . . . . . . . . . Machines Disabled . | . . . . . . . . . . . . . . . . . . . Actions | -11 -10 -10 -9 -9 -9 -8 -8 -8 -8 -7 -7 -7 -7 -6 -6 -6 -6 -6 --------- Run | Jun Mat Min Mat Min Exi Min Mat Gar Mat Fac Low Low Dat Pro Fac Ext Cet Arc Total 9596 | 111 666 175 1305 472 241 80 121 1056 494 1021 589 692 96 652 610 974 228 13 Wait 854 | 2 69 . 116 16 5 21 1 45 159 131 13 19 . 122 14 47 74 . Move 7782 | 86 508 174 968 428 234 59 114 851 293 810 557 646 90 512 554 740 145 13 Hop . | . . . . . . . . . . . . . . . . . . . Pick Up 82 | 7 7 . 24 2 1 . 2 14 3 7 . 3 . . 5 6 1 . Fast Attach 45 | 7 1 . 7 . . . 1 8 3 7 2 . 3 1 4 1 . . Attach 28 | . 1 . 7 3 . . 1 8 2 3 . . . . 3 . . . Detach 2 | . . . 1 . . . . . . . . . . . 1 . . . Swap 96 | . 16 . 10 6 1 . . 18 2 3 6 8 . 4 5 15 2 . Drop 114 | . 9 . 32 4 . . 1 20 2 9 3 7 3 1 7 14 2 . Fire 438 | 9 53 . 132 13 . . 1 87 29 46 8 9 . 12 15 20 4 . Melee . | . . . . . . . . . . . . . . . . . . . Ram 1 | . . . 1 . . . . . . . . . . . . . . . Kick 10 | . 2 1 7 . . . . . . . . . . . . . . . Crush 8 | . . . . . . . . . 1 5 . . . . 2 . . . Escape Stasis 5 | . . . . . . . . 5 . . . . . . . . . . Rewire 131 | . . . . . . . . . . . . . . . . 131 . . Trap . | . . . . . . . . . . . . . . . . . . . Miscellaneous . | . . . . . . . . . . . . . . . . . . . Route ------- -11/Junkyard -10/Materials (discovered 4 exits: *Mat x3 / [*Min]) -10/Mines -9/Materials (discovered 4 exits: *Mat x2 / *Min / *Sto) -9/Mines (discovered 3 exits: *Mat x2 / *Exi) -9/Exiles (discovered 2 exits: [*Min x2]) -8/Mines -8/Materials -8/Garrison (discovered 3 exits: *Mat x3) -8/Materials -7/Factory (discovered 2 exits: *Low x2) -7/Lower Caves -7/Lower Caves (discovered 2 exits: *Fac / *Dat) -7/Data Miner -6/Proximity Caves -6/Factory (discovered 3 exits: Low / *Ext x2) -6/Extension (discovered 2 exits: *Fac / *Cet) -6/Cetus -6/Archives History --------- Turn | Location | Event 5 | -11/Junkyard | Discovered new exit (range 14) 146 | -11/Junkyard | Entered Materials 309 | -10/Materials | Build established: Mutant 311 | -10/Materials | Discovered new exit (range 14) 772 | -10/Materials | Discovered new exit (range 4) 1065 | -10/Materials | Central database locked down 1114 | -10/Materials | Discovered new exit (range 8) 1232 | -10/Materials | Repaired Ion Engine 1269 | -10/Materials | Core integrity fell below 50% 1272 | -10/Materials | Build established: Scavenger-Mutant 1350 | -10/Materials | Discovered new exit (range 6) 1363 | -10/Materials | Entered Mines 1805 | -10/Mines | Discovered new exit (range 5) 1818 | -10/Mines | Entered Materials 1818 | -9/Materials | Evolved 2 slots: Propulsion x2 1819 | -9/Materials | Identified exit to Storage 2421 | -9/Materials | Discovered new exit (range 15) 2941 | -9/Materials | Core integrity fell below 50% 3021 | -9/Materials | Build established: Mutant 3589 | -9/Materials | Discovered new exit (range 16) 3604 | -9/Materials | Identified exit to Mines 3818 | -9/Materials | Search patrols dispatched 3859 | -9/Materials | Entered Mines 3865 | -9/Mines | Met a Derelict who couldn't figure out how to use a Trap Extractor 4057 | -9/Mines | Discovered new exit (range 7) 4076 | -9/Mines | Discovered new exit (range 10) 4149 | -9/Mines | Assembled infested the area 4172 | -9/Mines | Core integrity fell below 20% 4202 | -9/Mines | Lost 3 parts (1p1u1w) 4212 | -9/Mines | Destroyed 9 combat bots 4273 | -9/Mines | Found a damaged Exp. Sensor Array with a note attached 4275 | -9/Mines | Found Prototype Device 4388 | -9/Mines | Assisted by bots powering up and referring to "LRC-V3" 4428 | -9/Mines | Deemed a non-threat by the Exiles lab entrance 4428 | -9/Mines | Discovered new exit (range 5) 4439 | -9/Mines | Entered Exiles 4439 | -9/Exiles | Accompanied by 3 allies 4457 | -9/Exiles | Discovered new exit (range 15) 4469 | -9/Exiles | Met 8R-AWN 4489 | -9/Exiles | Met EX-HEX 4523 | -9/Exiles | Met EX-BIN 4538 | -9/Exiles | Aligned with FarCom system 4539 | -9/Exiles | Given EX-Vault access code 4568 | -9/Exiles | Opened EX-Vault 4575 | -9/Exiles | Found Superbattery 4600 | -9/Exiles | Warned to stay clear of 0b10 Research branches 4636 | -9/Exiles | Met EX-DEC 4707 | -9/Exiles | Discovered new exit (range 14) 4728 | -9/Exiles | Left Exiles lab with Superbattery 4728 | -9/Exiles | Entered Mines 4728 | -8/Mines | Accompanied by 3 allies 4781 | -8/Mines | Discovered new exit (range 12) 4820 | -8/Mines | Entered Materials 4820 | -8/Materials | Accompanied by 3 allies 4820 | -8/Materials | Evolved 2 slots: Utility x1, Weapon x1 4973 | -8/Materials | Identified exit to Garrison 4975 | -8/Materials | Entered Garrison 4975 | -8/Garrison | Accompanied by 3 allies 5156 | -8/Garrison | Triggered checkpoint 5190 | -8/Garrison | Garrison Relay disabled 5221 | -8/Garrison | Triggered checkpoint 5252 | -8/Garrison | Build established: Skirmisher 5334 | -8/Garrison | System corruption reached 10% 5364 | -8/Garrison | Lost 4 parts (2n1u1w) 5489 | -8/Garrison | Discovered new exit (range 9) 5546 | -8/Garrison | Triggered checkpoint 5548 | -8/Garrison | Phase Generator disabled 5579 | -8/Garrison | Met a derelict Sapper fleeing the area 5630 | -8/Garrison | Garrison Relay disabled 5664 | -8/Garrison | Discovered new exit (range 49) 5664 | -8/Garrison | Discovered new exit (range 36) 5664 | -8/Garrison | Discovered new exit (range 84) 5670 | -8/Garrison | Build established: Scavenger-Skirmisher 6122 | -8/Garrison | Triggered checkpoint 6162 | -8/Garrison | Garrison Relay disabled 6168 | -8/Garrison | Triggered checkpoint 6214 | -8/Garrison | Garrison Relay disabled 6229 | -8/Garrison | Garrison Relay disabled 6281 | -8/Garrison | Rescued a captive Derelict 6283 | -8/Garrison | Rescued a captive Derelict 6366 | -8/Garrison | Triggered checkpoint 6438 | -8/Garrison | Garrison Relay disabled 6474 | -8/Garrison | Triggered checkpoint 6616 | -8/Garrison | Triggered checkpoint 6784 | -8/Garrison | Entered Materials 6784 | -8/Materials | Accompanied by 1 ally 7302 | -8/Materials | Discovered new exit (range 10) 7513 | -8/Materials | Entered Factory 7513 | -7/Factory | Evolved 2 slots: Utility x2 7675 | -7/Factory | Repaired Rnf. Ion Engine 7756 | -7/Factory | Identified exit to Lower Caves 8838 | -7/Factory | Lost 3 parts (2n1w) 9211 | -7/Factory | Entered Lower Caves 9220 | -7/Lower Caves | Learned location of Extension (-6) 9227 | -7/Lower Caves | Identified Exp. Sensor Array 9250 | -7/Lower Caves | Met a Warlord Commander 9251 | -7/Lower Caves | Learned location of Warlord (-4) 9881 | -7/Lower Caves | Learned Factory garrison access intel 9932 | -7/Lower Caves | Learned location of 2 exits from Factory 9965 | -7/Lower Caves | Encountered a Warlord checkpoint 10095 | -7/Lower Caves | Build established: Scavenger-Mutant 10124 | -7/Lower Caves | Discovered new exit (range 14) 10144 | -7/Lower Caves | Identified exit to Lower Caves 10147 | -7/Lower Caves | Entered another Lower Caves area 10150 | -7/Lower Caves | Discovered new exit (range 10) 10171 | -7/Lower Caves | Learned Factory stockpile data 10183 | -7/Lower Caves | Encountered a Warlord checkpoint 10294 | -7/Lower Caves | Attracted the attention of an 0b10 checkpoint 10453 | -7/Lower Caves | Build established: Scavenger-Skirmisher 10844 | -7/Lower Caves | Learned Factory emergency access door positions 11026 | -7/Lower Caves | Discovered new exit (range 14) 11051 | -7/Lower Caves | Identified exit to Data Miner 11243 | -7/Lower Caves | Entered Data Miner 11243 | -7/Data Miner | Discovered new exit (range 6) 11250 | -7/Data Miner | Identified exit to Proximity Caves 11275 | -7/Data Miner | Met Data Miner 11319 | -7/Data Miner | Learned location of Section 7 (-2) 11319 | -7/Data Miner | Acquired the access code to Warlord's prototype stash 11338 | -7/Data Miner | Received God Mode back door access code from Data Miner 11393 | -7/Data Miner | Entered Proximity Caves 11555 | -6/Proximity Caves | Build established: Scavenger-Mutant 12115 | -6/Proximity Caves | Escorted by Enhanced Grunt 12346 | -6/Proximity Caves | Discovered new exit (range 13) 12367 | -6/Proximity Caves | Identified exit to Factory 12371 | -6/Proximity Caves | Entered Factory 12371 | -6/Factory | Accompanied by 1 ally 12371 | -6/Factory | Evolved 2 slots: Utility x1, Weapon x1 12372 | -6/Factory | Identified exit to Lower Caves 12372 | -6/Factory | Identified exit to Extension 12375 | -6/Factory | Loaded intel: 4 garrison access locations 12522 | -6/Factory | Discovered exit to Extension (range 9) 12703 | -6/Factory | Build established: Scavenger-Gunner 13056 | -6/Factory | Incoming investigation squad redirected 13346 | -6/Factory | Entered Extension 13584 | -6/Extension | Rescued A7 13669 | -6/Extension | Build established: Scavenger-Skirmisher 13747 | -6/Extension | Rescued a captive Derelict 13872 | -6/Extension | Rescued a captive Derelict 14295 | -6/Extension | Spotted B-75 Beast 14297 | -6/Extension | Destroyed B-75 Beast 14314 | -6/Extension | Spotted B-75 Beast 14339 | -6/Extension | Destroyed B-75 Beast 14409 | -6/Extension | Rescued a captive Derelict 14410 | -6/Extension | Rescued a captive Derelict 14434 | -6/Extension | Rescued a captive Derelict 14434 | -6/Extension | Rescued a captive Derelict 14447 | -6/Extension | Rescued a captive Derelict 14449 | -6/Extension | Rescued a captive Derelict 14458 | -6/Extension | Rescued a captive Derelict 14459 | -6/Extension | Rescued a captive Derelict 14493 | -6/Extension | Rescued a captive Derelict 14515 | -6/Extension | Rescued a captive Derelict 14518 | -6/Extension | Rescued a captive Derelict 14797 | -6/Extension | Rescued a captive Derelict 14821 | -6/Extension | Discovered new exit (range 10) 14823 | -6/Extension | Discovered new exit (range 6) 14843 | -6/Extension | Identified exit to Factory 14848 | -6/Extension | Identified exit to Cetus 14855 | -6/Extension | Entered Cetus 14855 | -6/Cetus | Accompanied by 19 allies (A7) 14860 | -6/Cetus | Acquired a Cetus Manufacturing Module code from A7 14875 | -6/Cetus | Spotted Cetus Guard 14875 | -6/Cetus | Spotted Cetus Guard 14878 | -6/Cetus | Spotted Cetus Guard 14887 | -6/Cetus | Allies destroyed Cetus Guard 14895 | -6/Cetus | Allies destroyed Cetus Guard 14903 | -6/Cetus | Allies destroyed Cetus Guard 15016 | -6/Cetus | Started Cetus Manufacturing Module 15041 | -6/Cetus | Manufactured an Enhanced Grunt 15062 | -6/Cetus | Escorted A7 to Cetus Mainframe 15066 | -6/Cetus | Manufactured an Enhanced Grunt 15081 | -6/Cetus | Discovered new exit (range 16) 15091 | -6/Cetus | Manufactured an Enhanced Grunt 15116 | -6/Cetus | Manufactured an Enhanced Grunt 15135 | -6/Cetus | Identified exit to Archives 15141 | -6/Cetus | Manufactured an Enhanced Grunt 15179 | -6/Cetus | Entered Archives 15179 | -6/Archives | Accompanied by 15 allies (A7) 15199 | -6/Archives | Extracted ID and sensor layout for unrecognized location from A7's data core 15200 | -6/Archives | Self-destructed Last Messages --------------- 15180_ A7 destroyed. 15183_ HV Slug penetrates Y-64 Sentinel. 15184_ Slug penetrates Wall. 15184_ Y-64 Sentinel destroyed. 15195_ Slug penetrates Y0-R7X(g). 15196_ HV Slug penetrates Enhanced Grunt. 15196_ Enhanced Grunt suffers critical hit (Destroy). 15196_ Enhanced Grunt destroyed. 15196_ HV Slug penetrates 00-J38(b). 15196_ 00-J38(b) suffers critical hit (Destroy). 15196_ 00-J38(b) destroyed. 15196_ Penetrated by HV Slug. 15198_ Penetrated by Slug. 15198_ HV Slug penetrates Y-64 Sentinel. 15198_ Y-64 Sentinel suffers critical hit (Destroy). 15198_ Y-64 Sentinel destroyed. 15198_ HV Slug penetrates Wall. 15199_ Acquired data core, extracted ID and sensor data for unrecognized location. 15200_ Slug penetrates Enhanced Grunt. Map ----- +----------------------------------------------------+ | | | | | | | | | | | ?????????????????????????????????????????? | | ?????????????????????????????????????????? | | ?????????????????????????????????????????? | | ?????????????????????????????????????????? | | ?????????????????????????????????????????? | | ?????????????????????????????????????????? | | ?????????????????????????????????????????? | | ?????????????????????????????????????????? | | ?????????????????????????????????????????? | | ?????????????????????????????????????????? | | ?????????????????????????????????????????? | | ?????????????????????????????????????????? | | ??????????????????#????##????????????????? | | ??????????????????"""""""#???????????????? | | ??????????????????"""V"""#???????????????? | | ??????????????????""" """#?? #???????????? | | ????????????????##"" ""# =#;#?????????? | | ??############### o%=;#?????????? | | ??# g b%g [%""?????????? | | ??# h!!h[ g ""?????????? | | ??# ghg%g@g o "?????????? | | ??#####+#########g V????????? | | ????? ??????" "?????????? | | ???? ????" ""?????????? | | ??? """"??" "??????????? | | ??#"""""""""#"? #??????????? | | ??#""""""""""?""o o ??????????? | | ??#""""""""???"""Y ??????????? | | ???""""""""????"" o ???????????? | | ???????????????## Y???????????? | | ?????????????????# #"" ""????????????? | | ?????????????????? #""" ""?????????????? | | ?????????????????? #???V"??????????????? | | ?????????????????? #???????????????????? | | ?????????????????? #???????????????????? | | ?????????????????? ?????????????????????? | | ?????????????????????????????????????????? | | ?????????????????????????????????????????? | | ?????????????????????????????????????????? | | ?????????????????????????????????????????? | | ?????????????????????????????????????????? | | ?????????????????????????????????????????? | | ?????????????????????????????????????????? | | ?????????????????????????????????????????? | | ?????????????????????????????????????????? | +----------------------------------------------------+ Best States ------------- Heat Dissipation 68 Energy Generation 25 Energy Capacity 350 Matter Stores 300 Matter Capacity 300 Sight Range 16 Robot Scan Range 20 Terrain Scan Density 10 Armor Coverage 600 Resistance: EM 25 Evasion (%) 55 Targeting Accuracy 6 Recoil Reduction 4 Kinecelleration 40 Offensive Hacking 14 Item Schematics ----------------- Combat Drone Bay | -7/Data Miner | Free Lgt. Regenerative Plating | -7/Data Miner | Free Biomechanical Wings | -7/Data Miner | Free Thermal Defense Suite | -7/Data Miner | Free Imp. Lightning Gun | -7/Data Miner | Free Antigrav System | -7/Data Miner | Free Adv. Cooling System | -7/Data Miner | Free Hvy. Mass Driver | -7/Data Miner | Free Hvy. Machine Gun | -7/Data Miner | Free Imp. Coolant Injector | -7/Data Miner | Free Weapon Mount | -6/Extension | Hacked Robot Schematics ------------------ R-10 Processor | -7/Data Miner | Free B-48 Gladiator | -7/Data Miner | Free M-22 Extractor | -7/Data Miner | Free G-47 Trooper | -7/Data Miner | Free G-50 Soldier | -7/Data Miner | Free Fabricated ------------ Nothing Alien Tech Used ----------------- None Achievements -------------- None Challenges ------------ None Game ------ Seed FluxBurstDisintegrator Manual? 0 Play Time 01:26:08 Cumulative 212.2 hours Start 2023.08.17 @ 15:31:40 End 2023.08.17 @ 17:59:17 Sessions 3 Manual Loads 0 Difficulty Rogue Special Mode None Game No. 248 Rogue 248 Adventurer 0 Explorer 0 Win Type - Total 5 Types 3/0/0/1/0/0/1/0/0 Lore% 71 Gallery% 78 Achievement% 63 Wizard Run 0 Options --------- ASCII 0 Keyboard 0 Movement Numpad Keybinds 0 Fullscreen 1 Font 18/SmallcapsGlow Map View 76x50 Tactical HUD 1 Map Filters NONE Filters NONE Steam 1 RUN: a65d7244-dd44-4fb1-8d85-f146a49fa2cb